fUST/lending_fUST_20240917
["ID","MTS","AMOUNT","RATE_DAILY","PERIOD"]
[338335208,1726508844706,-168.053914,0.00016096,2]
[338335209,1726508844728,-168.053914,0.0001616,2]
[338335210,1726508844750,-168.053914,0.00016223,2]
[338335211,1726508844772,-168.053914,0.00016287,2]
[338335212,1726508844796,-168.053914,0.00016351,2]
[338335213,1726508844817,-168.053914,0.00016415,2]
[338335214,1726508844839,-168.053914,0.00016478,2]
[338335215,1726508844860,-168.053914,0.00016542,2]
[338335216,1726508844882,-158.721966,0.00016548,2]
[338335217,1726508844903,-158.721966,0.00016562,2]
[338335218,1726508844924,-158.721966,0.00016576,2]
[338335219,1726508844945,-158.721966,0.00016589,2]
[338335220,1726508844965,-158.721966,0.00016603,2]
[338335221,1726508844986,-168.053914,0.00016606,2]
[338335222,1726508845007,-158.721966,0.00016617,2]
[338335223,1726508845030,-158.721966,0.00016631,2]
[338335224,1726508845054,-168.053914,0.0001667,2]
[338335225,1726508845080,-168.053914,0.00016734,2]
[338335226,1726508845101,-3707.77672633,0.00016889,2]
[338335227,1726508857002,165.83097404,0.00013,2]
[338335228,1726508933103,158.170289,0.00013699,2]
[338335229,1726508952156,-300.0,0.00016092,2]
[338335230,1726508952180,-300.0,0.00016092,2]
[338335231,1726508952203,-551.20200598,0.00016093,2]
[338335236,1726508995077,1000.0,2.235e-05,2]
[338335251,1726509032557,-300.0,0.00016092,2]
[338335252,1726509032568,-300.0,0.00016092,2]
[338335253,1726509032578,-2011.54335203,0.00016093,2]
[338335266,1726509038333,-22337.25464199,0.00016093,2]
[338335267,1726509038344,-6049.57210509,0.00016889,2]
[338335268,1726509038355,-2630.1251201,0.00016966,2]
[338335269,1726509038365,-1000.0,0.00016989,2]
[338335270,1726509038376,-1000.0,0.00016989,2]
[338335271,1726509038387,-1000.0,0.00016989,2]
[338335272,1726509038396,-1000.0,0.00016989,2]
[338335273,1726509038406,-808.49133513,0.00017,2]
[338335274,1726509038415,-326.73033339,0.00017204,2]
[338335275,1726509038425,-326.73033339,0.00017254,2]
[338335276,1726509038434,-57738.44033073,0.0001729,2]
[338335277,1726509038444,-1153.90295947,0.00017304,2]
[338335278,1726509038453,-326.73033339,0.00017304,2]
[338335279,1726509038464,-6521.3109894,0.00017397,2]
[338335280,1726509038473,-402.53213179,0.00017403,2]
[338335281,1726509038482,-500.0,0.00017403,2]
[338335282,1726509038491,-265.03708483,0.00017403,2]
[338335283,1726509038501,-500.0,0.00017403,2]
[338335285,1726509038511,-500.0,0.00017403,2]
[338335287,1726509038520,-500.0,0.00017403,2]
[338335289,1726509038529,-500.0,0.00017403,2]
[338335292,1726509038540,-500.0,0.00017403,2]
[338335294,1726509038549,-500.0,0.00017403,2]
[338335296,1726509038559,-500.0,0.00017403,2]
[338335298,1726509038569,-500.0,0.00017403,2]
[338335300,1726509038578,-459.41476895,0.00017403,2]
[338335302,1726509038587,-500.0,0.00017403,2]
[338335304,1726509038599,-500.0,0.00017403,2]
[338335306,1726509038608,-500.0,0.00017403,2]
[338335308,1726509038619,-500.0,0.00017403,2]
[338335310,1726509038630,-500.0,0.00017403,2]
[338335312,1726509038640,-500.0,0.00017403,2]
[338335315,1726509038651,-500.0,0.00017403,2]
[338335317,1726509038662,-500.0,0.00017403,2]
[338335319,1726509038671,-500.0,0.00017403,2]
[338335321,1726509038682,-500.0,0.00017403,2]
[338335323,1726509038693,-500.0,0.00017403,2]
[338335325,1726509038703,-500.0,0.00017403,2]
[338335327,1726509038715,-500.0,0.00017403,2]
[338335330,1726509038727,-500.0,0.00017403,2]
[338335332,1726509038737,-500.0,0.00017403,2]
[338335334,1726509038748,-500.0,0.00017403,2]
[338335336,1726509038758,-500.0,0.00017403,2]
[338335338,1726509038768,-500.0,0.00017403,2]
[338335340,1726509038778,-500.0,0.00017403,2]
[338335342,1726509038789,-500.0,0.00017403,2]
[338335344,1726509038799,-500.0,0.00017403,2]
[338335346,1726509038808,-500.0,0.00017403,2]
[338335348,1726509038818,-500.0,0.00017403,2]
[338335350,1726509038827,-500.0,0.00017403,2]
[338335352,1726509038837,-500.0,0.00017404,2]
[338335354,1726509038846,-500.0,0.00017404,2]
[338335356,1726509038857,-500.0,0.00017404,2]
[338335358,1726509038867,-500.0,0.00017404,2]
[338335360,1726509038879,-500.0,0.00017404,2]
[338335363,1726509038890,-179.29611121,0.00017404,2]
[338335365,1726509038901,-431.64913607,0.00017404,2]
[338335367,1726509038911,-500.0,0.00017404,2]
[338335369,1726509038921,-566.04014306,0.00017404,2]
[338335371,1726509038932,-500.0,0.00017404,2]
[338335373,1726509038943,-264.61623813,0.00017404,2]
[338335375,1726509038953,-500.0,0.00017404,2]
[338335377,1726509038963,-500.0,0.00017404,2]
[338335379,1726509038973,-500.0,0.00017404,2]
[338335381,1726509038982,-500.0,0.00017404,2]
[338335383,1726509038992,-440.29676228,0.00017404,2]
[338335386,1726509039003,-500.0,0.00017404,2]
[338335388,1726509039014,-500.0,0.00017404,2]
[338335390,1726509039024,-500.0,0.00017404,2]
[338335392,1726509039034,-500.0,0.00017404,2]
[338335394,1726509039045,-500.0,0.00017404,2]
[338335396,1726509039055,-500.0,0.00017404,2]
[338335399,1726509039066,-500.0,0.00017404,2]
[338335401,1726509039076,-500.0,0.00017404,2]
[338335403,1726509039086,-500.0,0.00017404,2]
[338335405,1726509039097,-500.0,0.00017404,2]
[338335407,1726509039109,-500.0,0.00017404,2]
[338335409,1726509039119,-502.92966657,0.00017404,2]
[338335434,1726509039344,-500.0,0.00017404,2]
[338335437,1726509039364,-500.0,0.00017404,2]
[338335439,1726509039374,-500.0,0.00017404,2]
[338335442,1726509039384,-500.0,0.00017404,2]
[338335444,1726509039394,-792.67822963,0.00017404,2]
[338335446,1726509039403,-792.67822963,0.00017404,2]
[338335448,1726509039412,-792.67822963,0.00017404,2]
[338335450,1726509039421,-792.67822963,0.00017404,2]
[338335452,1726509039431,-792.67822963,0.00017404,2]
[338335454,1726509039440,-792.67822963,0.00017404,2]
[338335456,1726509039449,-792.67822963,0.00017404,2]
[338335458,1726509039458,-792.67822963,0.00017404,2]
[338335459,1726509039467,-792.67822963,0.00017404,2]
[338335460,1726509039477,-792.67822963,0.00017404,2]
[338335461,1726509039486,-792.67822963,0.00017404,2]
[338335462,1726509039495,-792.67822963,0.00017404,2]
[338335463,1726509039505,-862.72886388,0.00017404,2]
[338335464,1726509039514,-862.72886388,0.00017404,2]
[338335465,1726509039523,-862.72886388,0.00017404,2]
[338335466,1726509039533,-266749.392587,0.00017405,2]
[338335467,1726509039542,-7012.6491192,0.00017405,2]
[338335468,1726509039551,-195.84530364,0.00017405,2]
[338335469,1726509039562,-88916.4641957,0.00017407,2]
[338335470,1726509039571,-2337.5497064,0.00017407,2]
[338335471,1726509039581,-500.0,0.00017531,2]
[338335472,1726509039589,-562.43569413,0.00017531,2]
[338335473,1726509039599,-500.0,0.00017531,2]
[338335474,1726509039608,-500.0,0.00017531,2]
[338335475,1726509039617,-500.0,0.00017531,2]
[338335476,1726509039629,-358.84092384,0.00017531,2]
[338335477,1726509039640,-151.01190471,0.00017544,2]
[338335478,1726509039649,-3000.0,0.00017544,2]
[338335480,1726509039660,-500.0,0.00017564,2]
[338335482,1726509039670,-500.0,0.00017564,2]
[338335484,1726509039680,-500.0,0.00017564,2]
[338335486,1726509039690,-420.0,0.00017592,2]
[338335488,1726509039700,-2337.5497064,0.00017606,2]
[338335490,1726509039710,-2337.5497064,0.00017607,2]
[338335492,1726509039719,-500.0,0.0001762,2]
[338335494,1726509039729,-420.0,0.00017701,2]
[338335496,1726509039740,-1153.90295944,0.00017716,2]
[338335498,1726509039749,-6521.3109894,0.00017761,2]
[338335501,1726509039759,-4675.0994128,0.00017769,2]
[338335503,1726509039769,-77343.02841092,0.00017779,2]
[338335504,1726509039778,-500.0,0.00017794,2]
[338335507,1726509039787,-500.0,0.00017826,2]
[338335509,1726509039797,-500.0,0.00017826,2]
[338335511,1726509039806,-2337.5497064,0.00017852,2]
[338335513,1726509039815,-7012.6491192,0.00017869,2]
[338335515,1726509039824,-500.0,0.00017873,2]
[338335517,1726509039835,-500.0,0.00017873,2]
[338335519,1726509039845,-500.0,0.00017873,2]
[338335521,1726509039857,-500.0,0.00017873,2]
[338335523,1726509039866,-456.14260723,0.00017873,2]
[338335525,1726509039875,-3489.0597522,0.00017899,2]
[338335527,1726509039884,-150.112233,0.000179,2]
[338335529,1726509039894,-2337.5497064,0.00017949,2]
[338335531,1726509039903,-650.21961667,0.00018,2]
[338335533,1726509039912,-206.85933239,0.00018,2]
[338335535,1726509039922,-6521.3109894,0.00018073,2]
[338335538,1726509039934,-150.112233,0.000181,2]
[338335540,1726509039943,-1153.90295944,0.00018127,2]
[338335542,1726509039954,-150.112233,0.000183,2]
[338335544,1726509039965,-6521.3109894,0.00018353,2]
[338335546,1726509039974,-6049.57210504,0.00018407,2]
[338335548,1726509039983,-6521.3109894,0.00018481,2]
[338335550,1726509039993,-150.112233,0.000185,2]
[338335552,1726509040003,-1153.90295944,0.00018539,2]
[338335554,1726509040013,-150.112235,0.000186,2]
[338335556,1726509040022,-500.0,0.0001863,2]
[338335558,1726509040031,-500.0,0.0001863,2]
[338335560,1726509040041,-500.0,0.0001863,2]
[338335562,1726509040050,-500.0,0.0001863,2]
[338335564,1726509040060,-500.0,0.0001863,2]
[338335567,1726509040069,-500.0,0.0001863,2]
[338335569,1726509040079,-500.0,0.0001863,2]
[338335571,1726509040088,-500.0,0.0001863,2]
[338335573,1726509040098,-500.0,0.0001863,2]
[338335575,1726509040108,-365.32578406,0.0001863,2]
[338335577,1726509040118,-150.112233,0.000187,2]
[338335579,1726509040129,-238.471068,0.000187,2]
[338335581,1726509040139,-6521.3109894,0.00018753,2]
[338335583,1726509040151,-150.112233,0.000188,2]
[338335585,1726509040163,-3000.0,0.000188,2]
[338335588,1726509040173,-150.112233,0.000188,2]
[338335590,1726509040182,-3000.0,0.0001881,2]
[338335592,1726509040193,-2337.5497064,0.0001881,3]
[338335594,1726509040203,-3000.0,0.0001882,2]
[338335596,1726509040214,-3000.0,0.0001883,2]
[338335598,1726509040229,-3000.0,0.0001884,2]
[338335600,1726509040239,-164.0,0.0001884,2]
[338335602,1726509040249,-3000.0,0.0001885,2]
[338335604,1726509040258,-151.0,0.0001886,2]
[338335606,1726509040268,-3000.0,0.0001886,2]
[338335608,1726509040277,-3000.0,0.0001887,2]
[338335610,1726509040287,-3000.0,0.0001888,2]
[338335612,1726509040296,-3000.0,0.0001889,2]
[338335614,1726509040305,-150.112233,0.000189,2]
[338335616,1726509040315,-150.112233,0.000189,2]
[338335618,1726509040324,-3000.0,0.000189,2]
[338335620,1726509040333,-2230.7112462,0.000189,2]
[338335622,1726509040343,-1000.0,0.00018901,2]
[338335624,1726509040352,-1000.0,0.00018901,2]
[338335626,1726509040363,-3000.0,0.0001891,2]
[338335628,1726509040374,-3000.0,0.0001892,2]
[338335631,1726509040384,-3000.0,0.0001893,2]
[338335633,1726509040394,-1000.0,0.00018934,2]
[338335635,1726509040404,-3000.0,0.0001894,2]
[338335637,1726509040415,-153.792981,0.0001895,2]
[338335639,1726509040425,-3000.0,0.0001895,2]
[338335641,1726509040439,-1153.90295944,0.0001895,2]
[338335643,1726509040449,-3000.0,0.0001896,2]
[338335645,1726509040462,-2337.5497064,0.0001896,3]
[338335647,1726509040472,-3000.0,0.0001897,2]
[338335649,1726509040481,-3000.0,0.0001898,2]
[338335651,1726509040490,-1000.0,0.0001899,2]
[338335653,1726509040500,-3000.0,0.0001899,2]
[338335655,1726509040509,-1000.0,0.00019,19]
[338335657,1726509040518,-3000.0,0.00019,2]
[338335659,1726509040527,-150.112233,0.00019,2]
[338335660,1726509040537,-1000.0,0.00019,2]
[338335661,1726509040546,-3000.0,0.0001901,2]
[338335662,1726509040555,-3000.0,0.0001902,2]
[338335663,1726509040565,-3000.0,0.0001903,2]
[338335664,1726509040574,-589.18,0.00019035,2]
[338335667,1726509040583,-198.03829748,0.00019035,2]
[338335668,1726509040592,-3000.0,0.0001904,2]
[338335670,1726509040601,-3000.0,0.0001905,2]
[338335672,1726509040610,-3000.0,0.0001906,2]
[338335674,1726509040619,-3000.0,0.0001907,2]
[338335676,1726509040628,-3000.0,0.0001908,2]
[338335677,1726509040639,-3000.0,0.0001909,2]
[338335678,1726509040648,-2337.5497064,0.0001909,3]
[338335679,1726509040658,-150.112233,0.000191,2]
[338335680,1726509040667,-3000.0,0.000191,2]
[338335681,1726509040676,-3000.0,0.0001911,2]
[338335682,1726509040685,-3000.0,0.0001912,2]
[338335683,1726509040694,-3000.0,0.0001913,2]
[338335684,1726509040703,-3000.0,0.0001914,2]
[338335685,1726509040712,-3000.0,0.0001915,2]
[338335686,1726509040721,-3000.0,0.0001916,2]
[338335687,1726509040731,-500.0,0.00019164,2]
[338335688,1726509040740,-3000.0,0.0001917,2]
[338335689,1726509040749,-500.0,0.00019173,2]
[338335690,1726509040771,-6521.3109894,0.00019174,2]
[338335691,1726509040781,-1000.0,0.00019178,2]
[338335692,1726509040791,-169.718241,0.00019178,2]
[338335693,1726509040801,-11271.542159,0.00019178,2]
[338335694,1726509040811,-2337.5497064,0.00019179,3]
[338335695,1726509040820,-3000.0,0.0001918,2]
[338335696,1726509040830,-3000.0,0.0001919,2]
[338335697,1726509040840,-7012.6491192,0.0001919,3]
[338335698,1726509040849,-1000.0,0.00019196,2]
[338335699,1726509040859,-160.0,0.00019199,2]
[338335700,1726509040869,-23183.91472459,0.000192,5]
[338335701,1726509040878,-150.112233,0.000192,2]
[338335702,1726509040888,-568593.81,0.000192,2]
[338335703,1726509040898,-3000.0,0.000192,2]
[338335704,1726509040908,-151.0,0.000192,2]
[338335705,1726509040917,-151.0,0.000192,2]
[338335706,1726509040927,-151.0,0.000192,2]
[338335707,1726509040937,-151.0,0.000192,2]
[338335708,1726509040946,-151.0,0.000192,2]
[338335709,1726509040955,-1248.079679,0.000192,2]
[338335710,1726509040965,-1248.079679,0.000192,2]
[338335711,1726509040975,-244.937349,0.000192,2]
[338335712,1726509040985,-151.0,0.000192,2]
[338335713,1726509040994,-244.937349,0.000192,2]
[338335714,1726509041004,-151.0,0.000192,2]
[338335715,1726509041014,-177.901155,0.000192,2]
[338335716,1726509041024,-177.901155,0.000192,2]
[338335717,1726509041034,-154.985555,0.000192,2]
[338335718,1726509041043,-207.943089,0.000192,2]
[338335719,1726509041053,-577.308165,0.000192,2]
[338335720,1726509041062,-207.943089,0.000192,2]
[338335721,1726509041072,-151.0,0.000192,2]
[338335722,1726509041082,-577.308165,0.000192,2]
[338335723,1726509041091,-151.0,0.000192,2]
[338335724,1726509041102,-284.821616,0.000192,2]
[338335725,1726509041111,-182.781139,0.000192,2]
[338335726,1726509041121,-151.0,0.000192,2]
[338335727,1726509041131,-182.781139,0.000192,2]
[338335728,1726509041140,-151.0,0.000192,2]
[338335729,1726509041152,-334.054611,0.000192,2]
[338335730,1726509041163,-334.054611,0.000192,2]
[338335731,1726509041172,-151.0,0.000192,2]
[338335732,1726509041181,-151.0,0.000192,2]
[338335733,1726509041191,-151.0,0.000192,2]
[338335734,1726509041202,-151.0,0.000192,2]
[338335735,1726509041211,-151.0,0.000192,2]
[338335736,1726509041223,-151.0,0.000192,2]
[338335737,1726509041234,-151.0,0.000192,2]
[338335738,1726509041244,-768.46425,0.000192,2]
[338335739,1726509041256,-768.46425,0.000192,2]
[338335740,1726509041266,-2711.05218,0.000192,2]
[338335741,1726509041276,-768.46425,0.000192,2]
[338335742,1726509041285,-768.46425,0.000192,2]
[338335743,1726509041296,-2711.05218,0.000192,2]
[338335744,1726509041306,-3000.0,0.0001921,2]
[338335745,1726509041316,-3000.0,0.0001922,2]
[338335746,1726509041325,-3000.0,0.0001923,2]
[338335747,1726509041335,-587.0,0.00019232,2]
[338335748,1726509041346,-3000.0,0.0001924,2]
[338335749,1726509041356,-1000.0,0.00019242,2]
[338335750,1726509041366,-1000.0,0.00019242,2]
[338335751,1726509041380,-1000.0,0.00019242,2]
[338335752,1726509041390,-3000.0,0.0001925,2]
[338335753,1726509041400,-6521.3109894,0.00019258,2]
[338335754,1726509041411,-3000.0,0.0001926,2]
[338335755,1726509041423,-3000.0,0.0001927,2]
[338335756,1726509041434,-3000.0,0.0001928,2]
[338335757,1726509041446,-3000.0,0.0001929,2]
[338335758,1726509041458,-3000.0,0.000193,2]
[338335759,1726509041469,-3000.0,0.0001931,2]
[338335760,1726509041479,-3000.0,0.0001932,2]
[338335761,1726509041490,-3000.0,0.0001933,2]
[338335762,1726509041500,-150.0,0.00019332,2]
[338335763,1726509041509,-524.0,0.00019332,2]
[338335764,1726509041519,-239.0,0.00019332,2]
[338335765,1726509041529,-150.0,0.00019332,2]
[338335766,1726509041538,-3000.0,0.0001934,2]
[338335767,1726509041548,-3000.0,0.0001935,2]
[338335768,1726509041558,-3000.0,0.0001936,2]
[338335769,1726509041568,-3000.0,0.0001937,2]
[338335770,1726509041577,-3000.0,0.0001938,2]
[338335771,1726509041587,-3000.0,0.0001939,2]
[338335772,1726509041598,-150.112233,0.000194,2]
[338335773,1726509041607,-3000.0,0.000194,2]
[338335774,1726509041617,-914.0,0.000194,2]
[338335775,1726509041628,-3000.0,0.0001941,2]
[338335776,1726509041638,-5462.327997,0.0001942,2]
[338335777,1726509041648,-587.0,0.00019471,2]
[338335778,1726509041658,-1000.0,0.000195,2]
[338335779,1726509041669,-500.0,0.00019589,2]
[338335780,1726509041678,-500.0,0.00019589,2]
[338335781,1726509041688,-654.9,0.00019589,2]
[338335782,1726509041697,-150.112233,0.000196,2]
[338335783,1726509041707,-6521.3109894,0.00019627,2]
[338335784,1726509041718,-52.25284234,0.00019634,2]
[338335785,1726509041778,-954.5533753,0.00019634,2]
[338335786,1726509041788,-150.112233,0.000198,2]
[338335787,1726509041799,-654.9,0.000198,2]
[338335788,1726509041808,-500.0,0.000198,2]
[338335789,1726509041818,-500.0,0.000198,2]
[338335790,1726509041828,-500.0,0.000198,2]
[338335791,1726509041837,-500.0,0.000198,2]
[338335792,1726509041846,-500.0,0.000198,2]
[338335793,1726509041856,-500.0,0.000198,2]
[338335794,1726509041865,-499.48179862,0.000198,2]
[338335795,1726509041874,-500.0,0.00019825,2]
[338335796,1726509041884,-500.0,0.00019825,2]
[338335797,1726509041894,-500.0,0.00019863,2]
[338335798,1726509041903,-11271.542159,0.00019863,2]
[338335799,1726509041913,-150.0,0.00019885,2]
[338335800,1726509041922,-6521.3109898,0.00019894,2]
[338335801,1726509041931,-1026.23542998,0.000199,2]
[338335802,1726509041941,-244.1961,0.000199,2]
[338335803,1726509041951,-6049.57210504,0.00019925,2]
[338335804,1726509041960,-360.71459997,0.00019973,2]
[338335805,1726509041970,-500.0,0.00019973,2]
[338335806,1726509041984,-500.0,0.00019973,2]
[338335807,1726509041995,-500.0,0.00019973,2]
[338335808,1726509042005,-172.62328094,0.00019973,2]
[338335809,1726509042014,-299.35495513,0.00019973,2]
[338335810,1726509042024,-500.0,0.00019973,2]
[338335811,1726509042033,-370.44203673,0.00019973,2]
[338335812,1726509042043,-160.0,0.00019999,2]
[338335813,1726509042053,-375.8374838,0.00019999,2]
[338335814,1726509042062,-12059.72266813,0.00019999,2]
[338335815,1726509042073,-565.95,0.0002,2]
[338335816,1726509042082,-500.0,0.0002,2]
[338335817,1726509042092,-500.0,0.0002,2]
[338335818,1726509042102,-4239.95768657,0.0002,5]
[338335819,1726509042111,-628652.3030235,0.0002,2]
[338335847,1726509043973,-3493.38691463,0.0002,2]
[338335848,1726509044776,-501.55,0.0002,2]
[338335849,1726509044789,-322388.79940889,0.0002,2]
[338335850,1726509044798,-156.37737614,0.0002,2]
[338335851,1726509044808,-47938.13434531,0.0002,2]
[338335852,1726509044818,-2797.43,0.0002,2]
[338335853,1726509044827,-184.5,0.0002,2]
[338335854,1726509044836,-1000.0,0.0002,20]
[338335855,1726509044845,-151.0,0.0002,2]
[338335856,1726509044855,-151.0,0.0002,2]
[338335857,1726509044864,-105763.92,0.0002,2]
[338335858,1726509044874,-151.0,0.0002,2]
[338335859,1726509044883,-151.0,0.0002,2]
[338335860,1726509044893,-151.0,0.0002,2]
[338335861,1726509044902,-151.0,0.0002,2]
[338335862,1726509044913,-151.0,0.0002,2]
[338335863,1726509044923,-151.0,0.0002,2]
[338335864,1726509044934,-154.036989,0.0002,2]
[338335865,1726509044945,-151.0,0.0002,2]
[338335866,1726509044955,-151.0,0.0002,2]
[338335867,1726509044965,-1048.751094,0.0002,2]
[338335868,1726509044975,-1048.751094,0.0002,2]
[338335869,1726509044984,-1048.751094,0.0002,2]
[338335870,1726509044993,-1048.751094,0.0002,2]
[338335871,1726509045003,-61299.82,0.0002,2]
[338335872,1726509045012,-151.0,0.0002,2]
[338335873,1726509045021,-151.0,0.0002,2]
[338335874,1726509045031,-151.0,0.0002,2]
[338335875,1726509045040,-151.0,0.0002,2]
[338335876,1726509045050,-151.0,0.0002,2]
[338335877,1726509045059,-151.0,0.0002,2]
[338335878,1726509045068,-151.0,0.0002,2]
[338335879,1726509045077,-151.0,0.0002,2]
[338335880,1726509045087,-151.0,0.0002,2]
[338335881,1726509045096,-151.0,0.0002,2]
[338335882,1726509045106,-151.0,0.0002,2]
[338335883,1726509045116,-261.020415,0.0002,2]
[338335884,1726509045125,-261.020415,0.0002,2]
[338335885,1726509045135,-261.020415,0.0002,2]
[338335886,1726509045144,-261.020415,0.0002,2]
[338335887,1726509045160,-151.0,0.0002,2]
[338335888,1726509045170,-191.5883,0.0002,2]
[338335889,1726509045179,-174.6323,0.0002,2]
[338335890,1726509045189,-174.6323,0.0002,2]
[338335891,1726509045199,-174.6323,0.0002,2]
[338335892,1726509045209,-174.6323,0.0002,2]
[338335893,1726509045218,-151.0,0.0002,2]
[338335894,1726509045228,-151.0,0.0002,2]
[338335895,1726509045239,-151.0,0.0002,2]
[338335896,1726509045249,-151.0,0.0002,2]
[338335897,1726509045259,-151.15238579,0.0002,2]
[338335898,1726509045268,-151.0,0.0002,2]
[338335899,1726509045277,-151.0,0.0002,2]
[338335900,1726509045287,-151.0,0.0002,2]
[338335901,1726509045296,-151.0,0.0002,2]
[338335902,1726509045305,-151.0,0.0002,2]
[338335903,1726509045314,-151.0,0.0002,2]
[338335904,1726509045323,-1559.143998,0.0002,2]
[338335905,1726509045331,-1559.143998,0.0002,2]
[338335906,1726509045340,-151.0,0.0002,2]
[338335907,1726509045350,-151.0,0.0002,2]
[338335908,1726509045359,-151.893092,0.0002,2]
[338335909,1726509045369,-151.0,0.0002,2]
[338335910,1726509045378,-151.0,0.0002,2]
[338335911,1726509045387,-151.0,0.0002,2]
[338335912,1726509045397,-267.425992,0.0002,2]
[338335913,1726509045407,-151.0,0.0002,2]
[338335914,1726509045417,-151.0,0.0002,2]
[338335915,1726509045426,-151.0,0.0002,2]
[338335916,1726509045438,-1277.500559,0.0002,2]
[338335917,1726509045451,-1277.500559,0.0002,2]
[338335918,1726509045461,-1277.500559,0.0002,2]
[338335919,1726509045471,-1277.500559,0.0002,2]
[338335920,1726509045481,-528.995598,0.0002,2]
[338335921,1726509045490,-528.995598,0.0002,2]
[338335922,1726509045499,-528.995598,0.0002,2]
[338335923,1726509045509,-528.995598,0.0002,2]
[338335924,1726509045518,-151.0,0.0002,2]
[338335925,1726509045530,-151.0,0.0002,2]
[338335926,1726509045541,-1000.0,0.0002,2]
[338335927,1726509045551,-164.797622,0.0002,2]
[338335928,1726509045562,-164.797622,0.0002,2]
[338335929,1726509045571,-151.0,0.0002,2]
[338335930,1726509045581,-151.0,0.0002,2]
[338335931,1726509045591,-164.797622,0.0002,2]
[338335932,1726509045600,-151.0,0.0002,2]
[338335933,1726509045610,-164.797622,0.0002,2]
[338335934,1726509045619,-151.0,0.0002,2]
[338335935,1726509045629,-151.0,0.0002,2]
[338335936,1726509045639,-151.0,0.0002,2]
[338335937,1726509045650,-190.795562,0.0002,2]
[338335938,1726509045660,-287.022276,0.0002,2]
[338335939,1726509045669,-287.022276,0.0002,2]
[338335940,1726509045679,-151.0,0.0002,2]
[338335941,1726509045688,-151.0,0.0002,2]
[338335942,1726509045697,-287.022276,0.0002,2]
[338335943,1726509045707,-151.0,0.0002,2]
[338335944,1726509045717,-287.022276,0.0002,2]
[338335945,1726509045726,-203.376145,0.0002,2]
[338335946,1726509045736,-151.0,0.0002,2]
[338335947,1726509045745,-151.0,0.0002,2]
[338335948,1726509045754,-151.0,0.0002,2]
[338335949,1726509045764,-151.0,0.0002,2]
[338335950,1726509045774,-151.0,0.0002,2]
[338335951,1726509045783,-151.0,0.0002,2]
[338335952,1726509045793,-151.0,0.0002,2]
[338335953,1726509045802,-151.0,0.0002,2]
[338335954,1726509045812,-1443.340769,0.0002,2]
[338335955,1726509045821,-151.0,0.0002,2]
[338335956,1726509045830,-1443.340769,0.0002,2]
[338335957,1726509045839,-151.0,0.0002,2]
[338335958,1726509045848,-1443.340769,0.0002,2]
[338335959,1726509045858,-151.0,0.0002,2]
[338335960,1726509045867,-1443.340769,0.0002,2]
[338335961,1726509045876,-1248.079679,0.0002,2]
[338335962,1726509045885,-1248.079679,0.0002,2]
[338335963,1726509045894,-1248.079679,0.0002,2]
[338335964,1726509045904,-1248.079679,0.0002,2]
[338335965,1726509045913,-244.937349,0.0002,2]
[338335966,1726509045922,-244.937349,0.0002,2]